[Event "DVM U20w 2021"]
[Site "Kiel"]
[Date "2022.07.23"]
[Round "1"]
[White "Hrebenshchykova, Yelyzaveta"]
[Black "Bangsa-Giesen, Citra"]
[Result "1-0"]
[ECO "C62"]
[WhiteElo "2088"]
[BlackElo "1420"]
[Annotator "TA"]
[PlyCount "133"]
[EventDate "2022.07.23"]
[EventType "team-tourn"]
[EventRounds "7"]
[EventCountry "GER"]
[SourceTitle "playchess.com"]
[Source "ChessBase"]
[SourceQuality "1"]
[TimeControl "40/5400+30:1800+30"]

{[%evp 15,133,56,45,19,34,24,101,57,60,62,66,54,72,48,51,40,45,8,45,30,66,55,55,55,60,60,59,48,50,58,87,60,133,120,145,78,79,79,77,81,131,129,449,140,147,150,252,247,200,107,636,633,747,700,710,170,29995,29996,29996,29987,29987,29988,29970,5681,29995,1810,1633,1753,5381,5282,2283,255,997,947,29965,29962,6179,4878,2108,2125,5206,5044,5173,2628,4133,3359,29984,29984,29984,29985,29985,29986,29986,29987,29987,29988,29989,29990,29990,29991,29991,29992,29992,29993,29996,29995,29995,29995,29995,29994,29995,29995,29995,29996,29996,29997,29997,29997,29998,29999]} 1. e4 {[%emt 0:00:05]} e5 {[%emt 0:00:13]} 2. Nf3 {[%emt 0:00:06]} Nc6 {[%emt 0:00:05]} 3. Bb5 {[%emt 0:00:15]} d6 {[%emt 0:02:41]} 4. d4 {[%emt 0:03:30]} exd4 {[%emt 0:01:31]} 5. Nxd4 {[%emt 0:00:06]} Bd7 {[%emt 0:00:12]} 6. Nc3 {[%emt 0:01:01]} Nf6 {[%emt 0:04:40]} 7. Bxc6 {[%emt 0:05:23]} Bxc6 {[%emt 0:01:13]} 8. Nxc6 {[%emt 0:00:41]} bxc6 {[%emt 0:00:08]} 9. Bf4 {[%emt 0:27:12] C62: Ruy Lopez: Steinitz Defence.} Nd7 {[%emt 0:12:33]} 10. Qe2 {[%emt 0:07:52] [#]} Nc5 $146 {[%emt 0:05:07]} (10... Be7 $11 {remains equal.}) ({Predecessor:} 10... Nb6 11. O-O-O Be7 12. e5 d5 13. Qg4 g5 14. Be3 Qd7 15. Qh5 h6 16. e6 Qxe6 {1-0 (38) Pantzar,M (2263)-Kleinert,J (1887) Reykjavik 2018}) 11. O-O {[%emt 0:05:14] White is better.} Be7 {[%emt 0:06:48]} 12. Be3 {[%emt 0:04:00]} Nd7 {[%emt 0:06:20]} 13. f4 {[%emt 0:07:15] White is more active.} O-O {[%emt 0:03:28]} 14. Qc4 {[%emt 0:03:19]} c5 {[%emt 0:07:44]} 15. Rad1 {[%emt 0:03:50]} c6 {[%emt 0:06:39]} 16. Ne2 {[%emt 0:04:29]} Rb8 {[%emt 0:08:39]} 17. b3 {[%emt 0:00:51]} Nf6 {[%emt 0:04:36]} 18. Bxc5 {[%emt 0:05:07] Strongly threatening e5.} d5 $1 {[%emt 0:01:58]} 19. exd5 {[%emt 0:00:29]} cxd5 {[%emt 0:01:28]} 20. Bxe7 {[%emt 0:04:10]} Qxe7 {[%emt 0:00:20]} 21. Qd3 {[%emt 0:00:07]} Rfe8 {[%emt 0:01:51]} 22. Nd4 {[%emt 0:01:05]} Ng4 {[%emt 0:02:33]} 23. Rf3 {[%emt 0:01:22] Against Qe3+} Rb4 {[%emt 0:02:16]} (23... Nf6 $14) 24. c3 $16 {[%emt 0:01:16]} Rb6 {[%emt 0:01:50] [#]} 25. h3 {[%emt 0:02:58]} (25. Rg3 $142 $1 {[%cal Rg3g4]} Rg6 26. Nf5 Qc5+ 27. Qd4) 25... Nf6 {[%emt 0:00:28]} 26. c4 {[%emt 0:03:53]} dxc4 {[%emt 0:02:21]} 27. Qxc4 {[%emt 0:00:11]} ({But not} 27. bxc4 $6 Qc5 $11) 27... Rd8 {[%emt 0:02:07]} (27... Qe4 $142) 28. Rfd3 {[%emt 0:01:05]} Qb7 $2 {[%emt 0:03:56][%mdl 8192]} (28... Qe4 $16) 29. Nf3 $2 {[%emt 0:01:34]} (29. Nf5 $18 {and the rest is easy.} Rxd3 30. Rxd3 (30. Qxd3 Re6 $16)) 29... Rxd3 {[%emt 0:01:06]} 30. Rxd3 {[%emt 0:00:10]} h6 {[%emt 0:01:04]} (30... Re6 $16 {was worth a try.} 31. Rd8+ Re8 32. Rxe8+ Nxe8) 31. Rd8+ $18 {[%emt 0:00:43]} Kh7 {[%emt 0:00:05]} 32. Qc2+ $40 {[%emt 0:02:33][%mdl 128] Black is in trouble.} (32. Ne5 $18) 32... g6 $2 {[%emt 0:00:11][%mdl 8192]} (32... Qe4 $16 33. Qxe4+ Nxe4) 33. Qc5 {[%emt 0:01:19] Intending Qf8 and mate.} g5 {[%emt 0:07:05]} 34. fxg5 {[%emt 0:02:11] Qf8 would kill now.} Rb5 {[%emt 0:01:34]} 35. Qc3 $2 {[%emt 0:01:44]} (35. Qd4) 35... Ne4 $2 {[%emt 0:01:29]} (35... Qb6+ $18 36. Qd4 hxg5) 36. Qh8+ {[%emt 0:00:08]} Kg6 {[%emt 0:00:30]} 37. Qxh6+ {[%emt 0:00:32]} Kf5 {[%emt 0:00:08]} 38. Nd4+ {[%emt 0:00:31]} Ke5 {[%emt 0:00:47]} 39. Qh8+ {[%emt 0:00:11]} (39. Qg7+ $142 f6 40. gxf6 Qxg7 41. fxg7 Nf6 42. Nxb5 a6 43. Nc7 a5 44. Rf8) 39... Kf4 {[%emt 0:00:57]} 40. Nxb5 {[%emt 0:00:20]} (40. Ne2+ $142 Kxg5 41. Qg7+ Kf5 42. Nd4+ Kf4 43. Qg4+ Ke5 44. Qf5#) 40... Qxb5 {[%emt 0:00:16][%mdl 4096] Endgame KQR-KQN} 41. Qh4+ {[%emt 0:30:34]} Ke3 {[%emt 0:31:03]} 42. Rd1 {[%emt 0:00:55] White threatens Re1+ and mate.} Qc5 {[%emt 0:00:00]} 43. Qe1+ {[%emt 0:00:00]} Kf4+ {[%emt 0:00:00]} 44. Kh2 {[%emt 0:00:00] Threatens to win with Qh4+.} Nxg5 {[%emt 0:00:00]} 45. Qg3+ {[%emt 0:00:00]} Kf5 {[%emt 0:00:00]} 46. Qg4+ {[%emt 0:00:00]} Kf6 {[%emt 0:00:00]} 47. Qd4+ {[%emt 0:00:00]} Qxd4 {[%emt 0:00:00]} 48. Rxd4 {[%emt 0:00:00] KR-KN} Ke5 {[%emt 0:00:00]} 49. Ra4 {[%emt 0:00:00]} f5 {[%emt 0:00:00]} 50. Rxa7 {[%emt 0:00:00]} f4 {[%emt 0:00:00]} 51. h4 {[%emt 0:00:00] White mates.} Ne6 {[%emt 0:00:00]} 52. Re7 {[%emt 0:00:00]} Kf6 {[%emt 0:00:00] [#]} 53. Rxe6+ $1 {[%emt 0:00:00]} Kxe6 {[%emt 0:00:00] KP-KP} 54. a4 {[%emt 0:00:00]} Ke5 {[%emt 0:00:00]} 55. a5 {[%emt 0:00:00]} Ke4 {[%emt 0:00:00]} 56. a6 {[%emt 0:00:00]} f3 {[%emt 0:00:00]} 57. gxf3+ {[%emt 0:00:00]} Kxf3 {[%emt 0:00:00]} 58. a7 {[%emt 0:00:00]} Kg4 {[%emt 0:00:00]} 59. a8=Q {[%emt 0:00:00]} Kxh4 {[%emt 0:00:00]} 60. Qe4+ {[%emt 0:00:00]} Kg5 {[%emt 0:00:00]} 61. Kg3 {[%emt 0:00:00]} Kf6 {[%emt 0:00:00]} 62. Qd5 {[%emt 0:00:00]} Ke7 {[%emt 0:00:00]} 63. Qc6 {[%emt 0:00:00]} Kf7 {[%emt 0:00:00]} 64. Kf4 {[%emt 0:00:00]} Ke7 {[%emt 0:00:00]} 65. Kf5 {[%emt 0:00:00]} Kd8 {[%emt 0:00:00]} 66. Qb7 {[%emt 0:00:00]} Ke8 {[%emt 0:00:00]} 67. Ke6 {[%emt 0:00:00] Weighted Error Value: White=0.56/Black=0.98} 1-0

[Event "DVM U20w 2021"]
[Site "Kiel"]
[Date "2022.07.23"]
[Round "1"]
[White "Peglau, Dora"]
[Black "Sickmann, Lisa"]
[Result "1-0"]
[ECO "D36"]
[WhiteElo "1920"]
[BlackElo "1672"]
[Annotator "TA"]
[PlyCount "73"]
[EventDate "2022.07.23"]
[EventType "team-tourn"]
[EventRounds "7"]
[EventCountry "GER"]
[SourceTitle "playchess.com"]
[Source "ChessBase"]
[SourceQuality "1"]
[TimeControl "40/5400+30:1800+30"]

{[%evp 25,73,7,28,27,55,47,75,58,86,95,92,103,115,-5,-8,-3,12,12,52,30,39,0,0,0,17,14,31,36,104,100,156,153,142,122,317,262,260,266,249,260,408,420,29984,29985,29989,29990,29990,29991,29994,29995]} 1. d4 {[%emt 0:00:03]} d5 {[%emt 0:00:05]} 2. c4 {[%emt 0:00:15]} e6 {[%emt 0:00:04]} 3. Nc3 {[%emt 0:00:14]} Nf6 {[%emt 0:00:12]} 4. cxd5 {[%emt 0:00:22]} exd5 {[%emt 0:00:09]} 5. Bg5 {[%emt 0:00:32]} Be7 {[%emt 0:00:17]} 6. e3 {[%emt 0:00:28]} c6 {[%emt 0:00:08]} 7. Bd3 {[%emt 0:00:17]} O-O {[%emt 0:00:50]} 8. Nge2 {[%emt 0:06:41]} Nbd7 {[%emt 0:01:59][%cal Bb8d7,Bd7f8,Bf8e6][%mdl 32]} 9. Qc2 {[%emt 0:03:45]} Re8 {[%emt 0:00:25]} 10. O-O {[%emt 0:00:39]} Nf8 {[%emt 0:00:40]} 11. f3 {[%emt 0:03:53]} h6 {[%emt 0:01:54]} 12. Bh4 {[%emt 0:00:50]} Ne6 {[%emt 0:00:11]} 13. Rad1 {[%emt 0:03:17]} b6 {[%emt 0:05:42] has lost popularity (13...Bd7).} 14. Bf2 {[%emt 0:07:12] D36: Queen's Gambit Declined: Exchange Variation: Main line (5 Bg5 c6 6 Qc2).} Bb7 {[%emt 0:01:46]} 15. Bf5 {[%emt 0:15:25]} Bf8 {[%emt 0:17:25]} 16. e4 {[%emt 0:02:44] [#] White is better.} Nh5 $146 {[%emt 0:11:06]} ({Predecessor:} 16... b5 17. e5 Nd7 18. Rfe1 Rc8 19. Nc1 b4 20. Na4 Ba6 21. Nb3 Bc4 22. Nbc5 Ndxc5 23. Nxc5 Bxc5 24. dxc5 {1-0 (41) Killer,O (2171)-Zielinski,S (2222) ICCF email 2009}) 17. Bxe6 {[%emt 0:03:49]} Rxe6 {[%emt 0:02:22] [#]} 18. e5 $1 {[%emt 0:01:51] aiming for g4.} Qg5 {[%emt 0:00:46]} 19. Qd2 {[%emt 0:04:01]} (19. Qd3 $16) 19... Qxd2 $11 {[%emt 0:02:22]} 20. Rxd2 {[%emt 0:00:06]} g5 {[%emt 0:00:45]} 21. g4 {[%emt 0:02:54]} Ng7 {[%emt 0:02:56]} 22. f4 $1 {[%emt 0:03:47]} f5 {[%emt 0:01:22]} 23. gxf5 {[%emt 0:06:25]} Nxf5 {[%emt 0:00:14]} 24. Ng3 {[%emt 0:03:44]} Nh4 {[%emt 0:02:49] ...Nf3+ is the strong threat.} 25. Be3 {[%emt 0:01:55]} gxf4 {[%emt 0:01:29]} 26. Rxf4 {[%emt 0:01:29]} Ng6 {[%emt 0:01:05]} ({Better is} 26... Be7 $1 $14) 27. Rg4 $16 {[%emt 0:03:06] Strongly threatening Nh5.} Bg7 {[%emt 0:07:26]} (27... Kh7 $142) 28. Nh5 {[%emt 0:06:22] Black must now prevent Rdg2.} Kh7 {[%emt 0:04:45]} 29. Rdg2 $36 {[%emt 0:02:09][%mdl 2048] White has strong initiative. White is more active.} Rf8 $2 {[%emt 0:06:55] This move loses the game for Black.} (29... Rg8 $16 30. R2g3 Bc8) 30. Nf4 {[%emt 0:03:38]} Rxf4 {[%emt 0:03:04]} 31. Bxf4 {[%emt 0:00:08]} c5 {[%emt 0:03:05]} 32. Nb5 {[%emt 0:02:20]} Bf8 {[%emt 0:03:57]} (32... Bc8 $142 33. Be3 (33. Nxa7 Ba6 $16) 33... Bh8) 33. Nc7 $18 {[%emt 0:03:52]} Rc6 {[%emt 0:01:07] [#]} (33... h5 $18 34. Nxe6 hxg4 35. Nxf8+ Nxf8) 34. e6 $1 {[%emt 0:05:18] White mates.} Nxf4 {[%emt 0:03:10]} 35. Rxf4 {[%emt 0:00:06]} Rxc7 {[%emt 0:00:30]} 36. Rxf8 {[%emt 0:00:07]} cxd4 {[%emt 0:03:29]} 37. Rf7+ {[%emt 0:00:14] Weighted Error Value: White=0.13 (very precise) /Black=0.51} 1-0

[Event "DVM U20w 2021"]
[Site "Kiel"]
[Date "2022.07.23"]
[Round "1"]
[White "Falke, Ornella"]
[Black "Muedder, Melanie"]
[Result "1/2-1/2"]
[ECO "B30"]
[WhiteElo "1912"]
[BlackElo "1865"]
[Annotator "TA"]
[PlyCount "160"]
[EventDate "2022.07.23"]
[EventType "team-tourn"]
[EventRounds "7"]
[EventCountry "GER"]
[SourceTitle "playchess.com"]
[Source "ChessBase"]
[SourceQuality "1"]
[TimeControl "40/5400+30:1800+30"]

{[%evp 12,159,19,7,12,9,9,9,10,18,14,17,29,0,34,41,127,133,201,200,225,236,224,60,58,52,59,32,57,0,0,-127,-127,-1170,-147,-158,-158,-199,-123,-124,-122,-136,-134,-160,-124,-207,-111,-319,-321,-323,-318,-314,-285,-298,-322,-335,-335,-353,-323,-316,-267,-371,-355,-373,-357,-392,-392,-392,-392,-390,-360,-320,-263,-370,-253,-245,-241,-253,-139,-379,-139,-111,-67,-68,-16,-16,-16,-44,-45,-45,-8,-8,0,0,0,-4598,0,0,0,0,0,0,0,0,0,0,0,0,0,0,0,0,0,0,0,0,0,0,0,0,0,0,0,0,0,0,0,0,0,0,0,0,0,0,0,0,0,0,0,0,0,0,0,0,0,0,0,0,0,0]} 1. e4 {[%emt 0:00:05]} c5 {[%emt 0:00:06]} 2. Nf3 {[%emt 0:00:08]} Nc6 {[%emt 0:00:08]} 3. Bb5 {[%emt 0:00:10]} Nf6 {[%emt 0:00:31][%cal Bg8f6,Bf6d5,Bd5c7,Bc7e6][%mdl 32]} 4. e5 {[%emt 0:03:30]} Nd5 {[%emt 0:00:07]} 5. Nc3 {[%emt 0:00:27]} Nc7 {[%emt 0:01:50]} 6. Bxc6 {[%emt 0:00:21]} dxc6 {[%emt 0:01:50]} 7. h3 {[%emt 0:01:52]} g6 {[%emt 0:03:57] B30: Sicilian: 2...Nc6 3 Bb5, lines without ...g6.} 8. d3 {[%emt 0:04:51]} Ne6 {[%emt 0:05:13]} 9. O-O {[%emt 0:07:41]} Bg7 {[%emt 0:02:05]} 10. a4 {[%emt 0:01:51]} a5 {[%emt 0:07:53]} 11. Re1 {[%emt 0:06:53]} Qc7 {[%emt 0:05:06]} 12. b3 {[%emt 0:23:17] [#]} Bd7 $146 {[%emt 0:07:38]} ({Predecessor:} 12... O-O 13. Ba3 Rd8 14. Ne4 b6 15. Qd2 h6 16. Rad1 Nd4 17. Nxd4 cxd4 18. f4 c5 {½-½ (39) Kuehnel,G (2526)-Lelievre,A (2499) ICCF corr 2002}) 13. Bb2 {[%emt 0:03:40]} g5 {[%emt 0:10:32]} (13... b6 $14) 14. Ne4 $16 {[%emt 0:05:24]} Rg8 {[%emt 0:11:58]} (14... h6 $16 {keeps fighting.}) 15. Nfxg5 $18 {[%emt 0:10:58]} (15. Nexg5 h6) 15... O-O-O {[%emt 0:07:10]} 16. Nxe6 $1 {[%emt 0:04:41]} ({Don't play} 16. Nxf7 $6 Rdf8 $16) 16... Bxe6 {[%emt 0:00:05]} 17. Qf3 $2 {[%emt 0:03:20]} ({Don't take} 17. Nxc5 $6 Bxh3 18. Re3 (18. Qh5 Bxg2 19. Re3 Be4 $11) 18... Bf5 $16) (17. Qh5 $18) 17... Bxe5 $14 {[%emt 0:06:39]} 18. Bxe5 {[%emt 0:00:33]} Qxe5 {[%emt 0:00:05]} 19. Qe3 {[%emt 0:04:54]} Qg7 {[%emt 0:04:29][%csl Gg8][%cal Rg7g2]} 20. g4 {[%emt 0:09:01]} (20. g3 $14) 20... Rd5 {[%emt 0:09:43]} 21. Nxc5 {[%emt 0:02:37]} (21. Kf1 $11 {remains equal.}) 21... Bxg4 $1 $17 {[%emt 0:03:17]} 22. Kh2 $2 {[%emt 0:01:22][%mdl 8192] [#]} (22. hxg4 $17 Qxg4+ 23. Kf1) 22... Qf6 $2 {[%emt 0:04:39]} 23. Ne4 {[%emt 0:01:35]} Qh4 {[%emt 0:01:47][%cal Og4h3]} 24. Qg3 {[%emt 0:00:18] [#]} Qxh3+ $40 {[%emt 0:01:02][%mdl 640] Black is out for blood.} 25. Qxh3 {[%emt 0:00:11]} Bxh3 {[%emt 0:00:04]} 26. Rg1 {[%emt 0:00:47] [#]} Bg4 $1 {[%emt 0:00:50] Strongly threatening ...Rh5+.} 27. Rg3 {[%emt 0:01:29]} Rg6 {[%emt 0:00:43]} 28. Kg2 {[%emt 0:01:04] [#]} (28. f3 $17 Rh5+ 29. Kg2) 28... Bf5 {[%emt 0:01:22]} (28... f5 $1 $19 {[%cal Rf5e4]} 29. Nc3 Rc5) 29. Ng5 {[%emt 0:00:44] [#]} (29. Rh1 $17 {was necessary.}) 29... Bxd3 $1 $19 {[%emt 0:01:44][%mdl 512]} 30. cxd3 {[%emt 0:00:58]} (30. Rxd3 Rxd3) 30... Rgxg5 {[%emt 0:00:19]} ({Not} 30... Rdxg5 $2 31. Rxg5 Rxg5+ 32. Kf3 $19) 31. Rxg5 {[%emt 0:00:27]} Rxg5+ {[%emt 0:00:05][%mdl 4096] Endgame KR-KR} 32. Kf3 {[%emt 0:00:03]} Kd7 {[%emt 0:00:55]} 33. Rh1 {[%emt 0:00:11]} h5 {[%emt 0:00:12]} 34. Kf4 {[%emt 0:00:32]} Rd5 {[%emt 0:00:40]} 35. Ke4 {[%emt 0:00:11]} Ke6 {[%emt 0:01:03]} 36. f4 {[%emt 0:00:21]} b5 {[%emt 0:01:24]} 37. axb5 {[%emt 0:00:26]} Rxb5 {[%emt 0:00:30]} 38. Ra1 {[%emt 0:00:55]} Kf6 {[%emt 0:00:36]} 39. Rc1 {[%emt 0:00:27]} c5 {[%emt 0:00:45]} 40. Rh1 {[%emt 0:01:06]} Rxb3 {[%emt 0:00:44]} 41. Rxh5 {[%emt 0:30:06]} Rc3 {[%emt 0:02:16]} 42. Rh6+ {[%emt 0:00:00]} Kg7 {[%emt 0:00:27]} 43. Ra6 {[%emt 0:00:00]} c4 {[%emt 0:02:36]} 44. Rxa5 {[%emt 0:00:00]} cxd3 {[%emt 0:02:30]} (44... Rxd3 $19 {aiming for ...e6.} 45. Rg5+ Kf6) 45. Rd5 $2 {[%emt 0:00:00]} (45. Rg5+ $17 Kf8 46. Rd5) 45... Kf6 $2 {[%emt 0:02:14]} (45... e6 $19 {is more deadly.} 46. Rd6 Rc4+ 47. Ke3 Kf6) 46. Rf5+ $17 {[%emt 0:00:00]} Ke6 {[%emt 0:00:36]} 47. Re5+ {[%emt 0:00:00]} Kd6 {[%emt 0:00:45]} ({Better is} 47... Kd7 $1 $15) 48. Rd5+ $11 {[%emt 0:00:00]} Kc6 {[%emt 0:00:45]} 49. Rd8 {[%emt 0:00:00]} Ra3 {[%emt 0:03:32]} (49... Kc7 $5 {[%cal Rc7d8]} 50. Rd4 Kc8 $17) 50. Rd4 {[%emt 0:00:00]} e6 {[%emt 0:01:41]} 51. f5 $1 {[%emt 0:00:00]} exf5+ {[%emt 0:04:19]} 52. Kxf5 {[%emt 0:00:00]} Kc5 {[%emt 0:02:26]} 53. Ke4 {[%emt 0:00:00][%mdl 8192]} (53. Rd7 $11) 53... Rc3 $2 {[%emt 0:02:19]} ({Black should try} 53... f5+ $1 $19 54. Ke5 Ra5) 54. Rd5+ {[%emt 0:00:00] The position is equal.} Kb4 {[%emt 0:00:58]} 55. Rd4+ {[%emt 0:00:00]} Kc5 {[%emt 0:01:35]} 56. Rd5+ {[%emt 0:00:00]} Kc6 {[%emt 0:00:38]} 57. Rd8 {[%emt 0:00:00] Intending Rc8+ and mate.} Ra3 {[%emt 0:01:24]} 58. Rd4 {[%emt 0:00:00]} Rb3 {[%emt 0:01:24]} 59. Rd8 {[%emt 0:00:00]} Kc5 {[%emt 0:02:48]} 60. Rd5+ {[%emt 0:00:00]} Kb4 {[%emt 0:01:04]} 61. Rxd3 {[%emt 0:00:00]} Rxd3 {[%emt 0:00:09]} 62. Kxd3 {[%emt 0:00:00] KP-K} Kc5 {[%emt 0:01:06][%cal Bb4c5,Bc5d6,Bd6d7,Bd7e8,Be8e7,Be7f7,Bf7g6,Bg6f6,Bf6e5,Be5f5,Bf5g4][%mdl 32]} 63. Ke4 {[%emt 0:00:00]} Kd6 {[%emt 0:00:25] ( -> ...Ke6)} 64. Kf5 {[%emt 0:00:00]} Kd7 {[%emt 0:00:42]} 65. Kf6 {[%emt 0:00:00]} Ke8 {[%emt 0:00:10]} 66. Kf5 {[%emt 0:00:00]} Ke7 {[%emt 0:00:16]} 67. Ke5 {[%emt 0:00:00]} f6+ {[%emt 0:00:40][%cal Bf7f6,Bf6f5,Bf5f4,Bf4f3,Bf3f2][%mdl 32]} 68. Kf5 {[%emt 0:00:00][%cal Be5f5,Bf5f4,Bf4g4][%mdl 32]} Kf7 {[%emt 0:00:05]} 69. Kf4 {[%emt 0:00:00]} Kg6 {[%emt 0:00:07]} 70. Kg4 {[%emt 0:00:00]} f5+ {[%emt 0:00:07]} 71. Kf4 {[%emt 0:00:00]} Kf6 {[%emt 0:00:09]} 72. Kf3 {[%emt 0:00:00]} Ke5 {[%emt 0:00:04]} 73. Ke3 {[%emt 0:00:00]} f4+ {[%emt 0:00:11]} 74. Kf3 {[%emt 0:00:00]} Kf5 {[%emt 0:00:11]} 75. Kf2 {[%emt 0:00:00]} Kg4 {[%emt 0:00:08]} 76. Kg2 {[%emt 0:00:00]} f3+ {[%emt 0:00:25]} 77. Kf2 {[%emt 0:00:00]} Kf4 {[%emt 0:00:20]} 78. Kf1 {[%emt 0:00:00]} Ke3 {[%emt 0:00:16]} (78... Kg3 $5 79. Kg1 Kh4 $11) 79. Ke1 {[%emt 0:00:00]} f2+ {[%emt 0:00:07]} 80. Kf1 {[%emt 0:00:00]} Kf3 {[%emt 0:00:39] Both players deserved the win here.  Weighted Error Value: White=0.54/Black=0.47} 1/2-1/2

[Event "DVM U20w 2021"]
[Site "Kiel"]
[Date "2022.07.23"]
[Round "1"]
[White "Peglau, Charis"]
[Black "Malinowsky, Celina"]
[Result "1-0"]
[ECO "E07"]
[WhiteElo "1870"]
[BlackElo "1519"]
[Annotator "NA RC COMBH"]
[PlyCount "63"]
[EventDate "2022.07.23"]
[EventType "team-tourn"]
[EventRounds "7"]
[EventCountry "GER"]
[SourceTitle "playchess.com"]
[Source "ChessBase"]
[SourceQuality "1"]
[TimeControl "40/5400+30:1800+30"]

1. d4 {[%emt 0:00:03]} d5 {[%emt 0:00:10]} 2. c4 {[%emt 0:00:07]} e6 {[%emt 0:00:07]} 3. Nf3 {[%emt 0:00:06]} Nf6 {[%emt 0:00:34]} 4. g3 {[%emt 0:00:07]} Nbd7 {[%emt 0:01:11]} 5. Bg2 {[%emt 0:01:03]} Be7 {[%emt 0:01:37]} 6. O-O {[%emt 0:00:22]} O-O {[%emt 0:01:38]} 7. Nc3 {[%emt 0:02:20]} Re8 {[%emt 0:03:47]} 8. Qc2 {[%emt 0:01:05]} c6 {[%emt 0:05:10]} 9. b3 {[%emt 0:02:27]} Nf8 {[%emt 0:02:57]} 10. Bb2 {[%emt 0:02:09]} Qc7 {[%emt 0:05:57]} 11. Rac1 {[%emt 0:06:08]} Ng6 {[%emt 0:05:33]} 12. e4 {[%emt 0:03:15]} dxe4 {[%emt 0:08:03]} 13. Nxe4 {[%emt 0:00:11]} Bd7 {[%emt 0:08:15]} 14. Rfd1 {[%emt 0:03:10]} Rad8 {[%emt 0:02:54]} 15. Nc3 {[%emt 0:20:46]} Bc8 {[%emt 0:02:32]} 16. Qb1 {[%emt 0:04:27]} Qa5 {[%emt 0:03:56]} 17. a4 {[%emt 0:08:40]} Qh5 {[%emt 0:02:54]} 18. Ne4 {[%emt 0:04:32]} Ng4 {[%emt 0:06:43]} 19. h3 {[%emt 0:01:30]} Nh6 {[%emt 0:01:10]} 20. Bc3 {[%emt 0:04:24]} e5 {[%emt 0:03:13]} 21. g4 {[%emt 0:04:44]} Nxg4 {[%emt 0:00:18]} 22. Ng3 {[%emt 0:03:53]} Qh6 {[%emt 0:03:02]} 23. hxg4 {[%emt 0:00:56]} Bxg4 {[%emt 0:01:02]} 24. Qe4 {[%emt 0:07:50]} Bxf3 {[%emt 0:04:40]} 25. Qxf3 {[%emt 0:00:39]} Nh4 {[%emt 0:07:32]} 26. Qg4 {[%emt 0:00:42]} Bg5 {[%emt 0:01:52]} 27. Rb1 {[%emt 0:01:33]} e4 {[%emt 0:05:07]} 28. Bxe4 {[%emt 0:01:38]} Rxe4 {[%emt 0:03:00]} 29. Qxe4 {[%emt 0:00:51]} Qf6 {[%emt 0:02:01]} 30. Rd3 {[%emt 0:01:21]} Kf8 {[%emt 0:02:29]} 31. d5 {[%emt 0:00:41]} Qh6 {[%emt 0:00:40]} 32. Re1 {[%emt 0:01:40]} 1-0

[Event "DVM U20w 2021"]
[Site "Kiel"]
[Date "2022.07.23"]
[Round "1"]
[White "Brunner, Sophia"]
[Black "Basovskiy, Jana"]
[Result "1/2-1/2"]
[ECO "D02"]
[WhiteElo "1804"]
[BlackElo "1867"]
[Annotator "NA RC COMBH"]
[PlyCount "93"]
[EventDate "2022.07.23"]
[EventType "team-tourn"]
[EventRounds "7"]
[EventCountry "GER"]
[SourceTitle "playchess.com"]
[Source "ChessBase"]
[SourceQuality "1"]
[TimeControl "40/5400+30:1800+30"]

1. d4 {[%emt 0:00:03]} Nf6 {[%emt 0:00:04]} 2. Nf3 {[%emt 0:00:14]} e6 {[%emt 0:00:07]} 3. g3 {[%emt 0:00:14]} d5 {[%emt 0:01:12]} 4. Bg2 {[%emt 0:00:24]} c5 {[%emt 0:03:59]} 5. e3 {[%emt 0:02:09]} Nc6 {[%emt 0:00:59]} 6. O-O {[%emt 0:00:09]} Be7 {[%emt 0:03:58]} 7. b3 {[%emt 0:00:27]} cxd4 {[%emt 0:04:15]} 8. exd4 {[%emt 0:01:17]} O-O {[%emt 0:01:01]} 9. Bb2 {[%emt 0:03:16]} b6 {[%emt 0:06:26]} 10. Nbd2 {[%emt 0:00:35]} Ba6 {[%emt 0:05:52]} 11. Re1 {[%emt 0:01:13]} Rc8 {[%emt 0:00:07]} 12. a3 {[%emt 0:09:52]} Qc7 {[%emt 0:04:19]} 13. Rc1 {[%emt 0:04:07]} Rfd8 {[%emt 0:02:39]} 14. Ne5 {[%emt 0:06:30]} Na5 {[%emt 0:18:39]} 15. f4 {[%emt 0:03:30]} Nb7 {[%emt 0:03:12]} 16. g4 {[%emt 0:20:24]} Nd6 {[%emt 0:06:52]} 17. g5 {[%emt 0:03:42]} Nd7 {[%emt 0:02:43]} 18. Bh3 {[%emt 0:26:18]} Nf8 {[%emt 0:14:51]} 19. Qh5 {[%emt 0:05:17]} g6 {[%emt 0:05:58]} 20. Qf3 {[%emt 0:03:25]} Nf5 {[%emt 0:03:03]} 21. Bxf5 {[%emt 0:01:24]} exf5 {[%emt 0:00:11]} 22. h4 {[%emt 0:02:23]} f6 {[%emt 0:05:13]} 23. Nd3 {[%emt 0:00:51]} Bb7 {[%emt 0:01:34]} 24. Re2 {[%emt 0:02:37]} fxg5 {[%emt 0:02:42]} 25. hxg5 {[%emt 0:00:19]} Bd6 {[%emt 0:01:08]} 26. Ne5 {[%emt 0:00:52]} Re8 {[%emt 0:01:06]} 27. Qg3 {[%emt 0:01:44]} Qg7 {[%emt 0:01:02]} 28. Ndf3 {[%emt 0:00:28]} Ne6 {[%emt 0:00:30]} 29. Rh2 {[%emt 0:00:30]} Nf8 {[%emt 0:00:34]} 30. Re1 {[%emt 0:00:33]} Re6 {[%emt 0:00:34]} 31. c3 {[%emt 0:00:33]} Rce8 {[%emt 0:00:21]} 32. Rhe2 {[%emt 0:00:33]} Ba6 {[%emt 0:00:13]} 33. Rh2 {[%emt 0:00:16]} Bb7 {[%emt 0:00:03]} 34. Rc2 {[%emt 0:00:12]} Ba8 {[%emt 0:01:13]} 35. Rd2 {[%emt 0:00:57]} Bb7 {[%emt 0:00:04]} 36. Re3 {[%emt 0:00:14]} b5 {[%emt 0:01:00]} 37. Re1 {[%emt 0:00:51]} a6 {[%emt 0:00:27]} 38. Rde2 {[%emt 0:00:26]} Bc8 {[%emt 0:00:31]} 39. Qh2 {[%emt 0:00:27]} Bb7 {[%emt 0:00:39]} 40. Qg3 {[%emt 0:00:31]} Bc8 {[%emt 0:00:08]} 41. Ra1 {[%emt 0:03:38]} Bb7 {[%emt 0:00:27]} 42. a4 {[%emt 0:03:36]} Ra8 {[%emt 0:01:06]} 43. axb5 {[%emt 0:00:46]} axb5 {[%emt 0:00:06]} 44. Rxa8 {[%emt 0:00:32]} Bxa8 {[%emt 0:00:19]} 45. Re1 {[%emt 0:02:10]} Re7 {[%emt 0:01:08]} 46. Ra1 {[%emt 0:06:41]} Ra7 {[%emt 0:00:28]} 47. Qe1 {[%emt 0:02:31]} 1/2-1/2